bitfinex/quotes_SOLUSD_20250326
["timestamp","ask_amount","ask_price","bid_price","bid_amount"]
[1742997512768,0.063,141.69,141.56,0.14216157]
[1742997512971,9.603,141.69,141.56,0.14216157]
[1742997513383,9.603,141.69,141.57,60.0409]
[1742997513581,0.063,141.69,141.58,0.28432314]
[1742997513897,0.063,141.69,141.59,1.8885]
[1742997514200,0.063,141.69,141.6,0.14216157]
[1742997514699,0.0001,141.69,141.61,20.0]
[1742997515003,18.79181043,141.77,141.62,7.9328]
[1742997515216,91.22,141.78,141.63,0.14216157]
[1742997515376,91.22,141.78,141.64,95.3118]
[1742997515697,18.64964886,141.77,141.64,95.3118]
[1742997516073,20.0,141.74,141.64,95.3118]
[1742997516513,18.64964886,141.77,141.64,95.3118]
[1742997516674,28.12964886,141.77,141.64,95.3118]
[1742997517097,20.0,141.74,141.64,95.3118]
[1742997518208,28.12964886,141.77,141.64,95.3118]
[1742997518209,20.0,141.73,141.64,95.3118]
[1742997519085,81.7,141.76,141.64,95.3118]
[1742997519603,28.19264886,141.77,141.64,88.2517]
[1742997519798,20.0,141.74,141.64,88.2517]
[1742997520005,9.543,141.77,141.64,88.2517]
[1742997520175,9.543,141.77,141.65,0.14216157]
[1742997520502,20.0,141.76,141.64,165.1327897]
[1742997520711,0.063,141.77,141.64,165.1327897]
[1742997520888,20.0,141.76,141.64,165.1327897]
[1742997521589,20.0,141.76,141.64,172.1928897]
[1742997521790,0.063,141.77,141.65,0.14216157]
[1742997522013,0.063,141.77,141.66,1.7319]
[1742997522220,0.063,141.77,141.69,0.28432314]
[1742997522410,6.2838,141.84,141.69,86.54541284]
[1742997522785,0.063,141.84,141.69,86.54541284]
[1742997522986,0.063,141.84,141.72,1.8271]
[1742997523417,0.063,141.84,141.73,24.6947]
[1742997523603,20.0,141.82,141.73,24.6947]
[1742997523921,18.64964886,141.8,141.73,24.6947]
[1742997524487,20.0,141.77,141.73,7.0556]
[1742997524691,0.14216157,141.75,141.65,26.5358]
[1742997524920,18.64964886,141.73,141.65,26.5358]
[1742997526005,9.5,141.74,141.65,26.5358]
[1742997526202,36.007,141.77,141.65,61.834]
[1742997526407,29.48,141.77,141.65,61.834]
[1742997527119,9.48,141.77,141.65,97.1322]
[1742997527904,9.48,141.77,141.66,0.14216157]
[1742997528199,9.48,141.77,141.67,6.6075]
[1742997529620,9.48,141.77,141.68,59.9941]
[1742997531224,9.48,141.77,141.68,172.1658897]
[1742997532120,9.36,141.81,141.7,1.8939]
[1742997532314,18.71264886,141.83,141.7,1.8939]
[1742997532517,0.063,141.83,141.7,1.8939]
[1742997533717,18.71264886,141.83,141.7,1.8939]
[1742997533909,18.71264886,141.83,141.71,59.9815]
[1742997534603,20.0,141.8,141.71,59.9815]
[1742997535020,18.64964886,141.79,141.71,24.6982]
[1742997535328,27.94964886,141.79,141.71,24.6982]
[1742997536005,9.3,141.79,141.71,24.6982]
[1742997536212,9.3,141.79,141.71,59.9815]
[1742997536831,0.063,141.83,141.71,95.2648]
[1742997537411,0.063,141.83,141.74,6.5675]
[1742997537909,0.063,141.83,141.75,59.9645]
[1742997538109,20.0,141.78,141.73,7.0555]
[1742997538433,9.38,141.77,141.73,7.0555]
[1742997538802,9.38,141.77,141.73,24.6946]
[1742997539028,9.38,141.77,141.73,7.0555]
[1742997539816,9.38,141.77,141.73,24.6946]
[1742997540027,9.38,141.77,141.69,42.3459]
[1742997540226,9.38,141.77,141.69,59.99]
[1742997540621,20.0,141.8,141.69,59.99]
[1742997540916,9.34,141.79,141.69,59.99]
[1742997541515,20.0,141.79,141.69,59.99]
[1742997541950,18.64964886,141.78,141.69,24.7017]
[1742997542729,18.64964886,141.78,141.62,1.8651]
[1742997542730,20.0,141.7,141.62,1.8651]
[1742997543032,26.4658,141.73,141.66,7.089]
[1742997543033,9.36,141.69,141.66,7.089]
[1742997543231,9.36,141.69,141.66,24.7368]
[1742997543638,91.06,141.72,141.66,24.7368]
[1742997543841,9.36,141.72,141.66,24.7368]
[1742997544009,9.36,141.72,141.66,0.03]
[1742997546415,9.36,141.72,141.67,8.1322]
[1742997546639,81.7,141.77,141.67,8.1322]
[1742997546821,9.3,141.76,141.67,8.1322]
[1742997547138,9.3,141.76,141.67,1.8569]
[1742997548117,9.3,141.76,141.68,24.7034]
[1742997549424,81.7,141.77,141.68,24.7034]
[1742997550155,81.7,141.77,141.68,59.9941]
[1742997550524,9.22,141.78,141.68,172.1658897]
[1742997550927,9.22,141.82,141.68,172.1658897]
[1742997551133,18.64964886,141.8,141.68,172.1658897]
[1742997551429,20.0,141.77,141.68,172.1658897]
[1742997551631,9.22,141.76,141.68,172.1658897]
[1742997551934,9.22,141.76,141.68,24.7034]
[1742997552642,100.34964886,141.75,141.68,7.0581]
[1742997552946,20.0,141.72,141.68,7.0581]
[1742997553346,20.0,141.72,141.68,24.7034]
[1742997553554,20.0,141.72,141.68,7.0581]
[1742997553851,101.7,141.71,141.66,0.03]
[1742997554052,18.64964886,141.69,141.66,0.03]
[1742997554545,20.0,141.67,141.66,0.03]
[1742997554753,38.64964886,141.67,141.66,0.03]
[1742997555325,20.0,141.67,141.66,0.03]
[1742997555862,18.64964886,141.69,141.66,0.03]
[1742997556354,25.82964886,141.7,141.66,0.03]
[1742997556731,81.7,141.71,141.66,0.03]
[1742997556942,9.14,141.7,141.66,0.03]
[1742997558448,9.14,141.7,141.67,1.7683]
[1742997558646,9.14,141.7,141.68,7.0581]
[1742997559533,9.08,141.72,141.68,7.0581]
[1742997560052,18.64964886,141.74,141.68,7.0581]
[1742997560263,90.76,141.73,141.68,24.7034]
[1742997560557,81.7,141.73,141.68,24.7034]
[1742997561435,9.04,141.74,141.68,24.7034]
[1742997561645,9.083,141.77,141.68,172.1658897]
[1742997562650,0.0001,141.77,141.71,20.0]
[1742997562858,0.0001,141.77,141.69,0.28432314]
[1742997562859,0.0001,141.77,141.72,7.9881]
[1742997564071,0.063,141.83,141.73,0.14216157]
[1742997564365,0.063,141.83,141.73,77.02325127]
[1742997564662,0.063,141.83,141.74,59.9688]
[1742997565448,0.063,141.83,141.74,95.2446]
[1742997566253,0.063,141.84,141.79,8.0007]
[1742997566254,0.0001,141.84,141.79,8.0007]
[1742997566658,0.0001,141.84,141.8,24.6825]
[1742997567159,9.063,141.89,141.8,24.6825]
[1742997567160,0.063,141.89,141.8,24.6825]
[1742997567666,0.063,141.84,141.8,24.6825]
[1742997568248,0.063,141.84,141.8,59.9434]
[1742997568448,0.063,141.84,141.8,24.6825]
[1742997569168,0.063,141.84,141.8,7.0521]
[1742997570367,0.063,141.84,141.8,24.6825]
[1742997570880,20.0,141.83,141.74,7.9134]
[1742997571063,18.64964886,141.82,141.75,7.0546]
[1742997573548,81.84216157,141.81,141.73,7.0552]
[1742997573752,18.64964886,141.79,141.73,7.0552]
[1742997575055,18.64964886,141.79,141.7,24.699]
[1742997575378,90.62,141.8,141.7,24.699]
[1742997575579,8.92,141.8,141.7,24.699]
[1742997576178,18.64964886,141.79,141.7,24.699]
[1742997576353,8.92,141.8,141.7,101.5800897]
[1742997577073,8.68520826,141.8,141.7,101.5800897]
[1742997577572,8.68520826,141.8,141.7,136.8658897]
[1742997577777,81.7,141.82,141.7,136.8658897]
[1742997577975,0.063,141.84,141.7,172.1516897]
[1742997578181,0.063,141.84,141.71,18.933972]
[1742997578359,0.063,141.84,141.73,18.933972]
[1742997578679,0.063,141.84,141.73,96.3150617]
[1742997579048,0.063,141.84,141.76,20.0]
[1742997579249,0.0001,141.84,141.78,1.7783]
[1742997580177,0.0001,141.84,141.78,10.6183]
[1742997581274,0.0001,141.84,141.79,24.6843]
[1742997581596,0.0001,141.84,141.79,136.8287897]
[1742997582469,0.0001,141.84,141.79,101.5653897]
[1742997585190,0.0001,141.84,141.78,8.8314]
[1742997586481,0.0001,141.84,141.78,1.7783]
[1742997586482,27.36974886,141.84,141.78,1.7783]
[1742997586782,27.36974886,141.84,141.78,8.8314]
[1742997587180,27.36974886,141.84,141.73,212.26]
[1742997587181,18.64964886,141.82,141.74,7.0551]
[1742997587371,81.7,141.83,141.74,24.693]
[1742997587984,18.64964886,141.82,141.74,7.0551]
[1742997588882,18.64964886,141.82,141.73,8.8444]
[1742997589580,81.84216157,141.81,141.73,1.789]
[1742997589904,18.64964886,141.8,141.73,8.8446]
[1742997591067,18.64964886,141.8,141.67,6.6411]
[1742997591068,18.64964886,141.78,141.68,17.6452]
[1742997591267,8.62,141.77,141.68,19.4669]
[1742997591473,8.62,141.77,141.69,7.0576]
[1742997591681,8.62,141.77,141.69,24.7017]
[1742997592188,8.62,141.77,141.74,0.03]
[1742997593569,100.34964886,141.76,141.74,0.03]
[1742997594368,18.64964886,141.74,141.68,8.8796]
[1742997594569,18.64964886,141.72,141.67,7.0584]
[1742997594878,8.56,141.71,141.67,7.0584]
[1742997595190,90.26,141.71,141.67,7.0584]
[1742997595390,81.7,141.7,141.66,0.03]
[1742997596769,100.34964886,141.69,141.66,0.03]
[1742997597291,18.64964886,141.67,141.66,0.03]
[1742997597671,20.0,141.68,141.66,0.03]
[1742997597893,27.33181043,141.67,141.66,0.03]
[1742997599478,27.31181043,141.67,141.66,0.03]
[1742997599979,20.0,141.6,141.59,0.03]
[1742997600177,20.0,141.57,141.55,0.03]
[1742997600384,18.64964886,141.56,141.55,0.03]
[1742997600692,20.0,141.52,141.47,7.1185]
[1742997600893,20.0,141.48,141.47,0.05]
[1742997601097,58.64964886,141.48,141.47,0.05]
[1742997601495,38.64964886,141.48,141.47,0.05]
[1742997601672,128.94964886,141.48,141.47,0.05]
[1742997601875,148.94964886,141.48,141.47,0.05]
[1742997602376,149.09181043,141.48,141.47,0.05]
[1742997602774,20.0,141.42,141.38,7.073]
[1742997602986,18.64964886,141.4,141.33,7.0756]
[1742997603296,8.6,141.39,141.33,24.7646]
[1742997603678,8.6,141.38,141.33,24.7646]
[1742997604075,8.6,141.38,141.33,60.1427]
[1742997604277,6.5873,141.44,141.33,24.7646]
[1742997604476,8.62,141.44,141.33,60.1427]
[1742997604682,18.64964886,141.45,141.33,60.1427]
[1742997605083,81.7,141.49,141.36,20.0]
[1742997605289,8.64,141.51,141.38,21.8421]
[1742997605496,8.64,141.51,141.41,24.7506]
[1742997605806,8.64,141.55,141.44,20.0]
[1742997606009,81.7,141.58,141.45,10.4097]
[1742997606306,110.34,141.58,141.45,10.4097]
[1742997606484,8.64,141.58,141.45,1.7697]
[1742997606686,203.803,141.62,141.47,18.64964886]
[1742997606687,8.703,141.62,141.47,18.64964886]
[1742997606934,0.063,141.62,141.51,26.1611]
[1742997607195,0.063,141.62,141.52,1.9224]
[1742997607584,18.64964886,141.58,141.53,7.0656]
[1742997607896,8.66,141.57,141.53,7.0656]
[1742997608101,28.66,141.58,141.53,7.0656]
[1742997608601,18.64964886,141.57,141.46,1.8367]
[1742997608797,20.0,141.54,141.48,17.6703]
[1742997609495,18.64964886,141.57,141.48,17.6703]
[1742997609694,8.66,141.58,141.48,17.6703]
[1742997610278,18.64964886,141.57,141.48,17.6703]
[1742997610480,18.64964886,141.6,141.48,17.6703]
[1742997610690,8.7,141.59,141.48,17.6703]
[1742997610891,8.7,141.6,141.48,17.6703]
[1742997611092,8.7,141.6,141.49,0.28432314]
[1742997611301,0.063,141.62,141.51,20.0]
[1742997611519,0.063,141.62,141.52,60.062]
[1742997611802,20.063,141.62,141.52,24.7314]
[1742997611973,20.0,141.58,141.52,24.7314]
[1742997612172,8.68,141.58,141.52,24.7314]
[1742997612573,8.68,141.58,141.52,60.062]
[1742997612778,8.68,141.58,141.52,24.7314]
[1742997613007,8.68,141.58,141.52,7.0661]
[1742997613185,8.68,141.58,141.52,24.7314]
[1742997613685,8.68,141.58,141.47,60.0832]
[1742997613889,18.64964886,141.57,141.47,60.0832]
[1742997614076,20.0,141.54,141.47,7.0686]
[1742997614433,18.79181043,141.55,141.47,7.0686]
[1742997614581,18.64964886,141.55,141.47,24.7401]
[1742997614781,20.0,141.52,141.47,24.7401]
[1742997615097,18.64964886,141.51,141.47,7.0686]
[1742997615296,8.76,141.52,141.47,7.0686]
[1742997615497,18.64964886,141.51,141.47,7.0686]
[1742997615794,120.34964886,141.51,141.41,7.0716]
[1742997616000,100.34964886,141.51,141.41,60.1087]
[1742997616177,8.76,141.52,141.41,60.1087]
[1742997616377,18.64964886,141.51,141.41,60.1087]
[1742997616874,100.34964886,141.51,141.41,24.7506]
[1742997617099,81.7,141.51,141.41,24.7506]
[1742997617284,8.76,141.52,141.41,95.4668]
[1742997617488,0.063,141.55,141.45,6.5197]
[1742997617783,0.063,141.55,141.46,24.7419]
[1742997618009,0.063,141.55,141.47,1.9102]
[1742997618178,0.0001,141.55,141.47,1.9102]
[1742997619204,0.0001,141.55,141.49,20.0]
[1742997619698,0.0001,141.55,141.48,24.7384]
[1742997620409,0.0001,141.55,141.49,0.28432314]
[1742997620700,0.063,141.62,141.52,20.0]
[1742997620895,0.063,141.62,141.54,1.8905]
[1742997621291,0.0001,141.62,141.54,1.8905]
[1742997621702,0.0001,141.62,141.55,60.0494]
[1742997621886,0.0001,141.62,141.55,24.7262]
[1742997622085,18.64964886,141.6,141.55,7.0646]
[1742997622706,81.7,141.61,141.55,7.0646]
[1742997623209,0.0001,141.62,141.55,24.7262]
[1742997623784,0.0001,141.62,141.55,60.0494]
[1742997624304,0.0001,141.62,141.55,24.7262]
[1742997624510,81.7,141.61,141.54,1.8905]
[1742997624690,47.34964886,141.6,141.49,24.7359]
[1742997624880,81.7,141.59,141.49,24.7359]
[1742997625082,18.64964886,141.58,141.49,24.7359]
[1742997626100,81.7,141.59,141.49,60.074]
[1742997626883,0.0001,141.62,141.52,20.0]
[1742997627086,0.0001,141.62,141.53,8.68]
[1742997627317,0.0001,141.62,141.54,1.8912]
[1742997627496,0.0001,141.62,141.56,0.14216157]
[1742997627685,0.0001,141.62,141.59,20.0]
[1742997627889,0.063,141.7,141.6,7.0621]
[1742997628185,0.063,141.7,141.6,101.5984897]
[1742997628386,0.063,141.7,141.61,1.8265]
[1742997628599,0.063,141.7,141.64,20.0]
[1742997628801,81.7,141.77,141.65,8.66]
[1742997629886,81.7,141.77,141.67,6.1973]
[1742997630415,0.063,141.73,141.67,6.1973]
[1742997630592,0.063,141.73,141.67,83.0783897]
[1742997631417,0.063,141.73,141.66,7.0591]
[1742997631911,8.703,141.73,141.63,24.7116]
[1742997632415,18.64964886,141.72,141.63,7.0606]
[1742997632616,18.64964886,141.7,141.61,1.8265]
[1742997632788,18.64964886,141.68,141.61,1.8265]
[1742997632987,8.62,141.67,141.61,8.8881]
[1742997633182,101.7,141.72,141.61,8.8881]
[1742997633383,81.7,141.71,141.61,26.5422]
[1742997634027,8.683,141.73,141.61,26.5422]
[1742997634317,8.683,141.73,141.61,138.7314897]
[1742997634488,18.64964886,141.69,141.61,8.8881]
[1742997634686,18.64964886,141.67,141.61,1.8265]
[1742997634908,27.26964886,141.67,141.61,8.8879]
[1742997635099,27.26964886,141.67,141.54,76.8810897]
[1742997635303,81.7,141.66,141.55,8.8778]
[1742997635516,81.7,141.66,141.55,26.5394]
[1742997635705,120.34964886,141.65,141.55,26.5394]
[1742997635897,120.34964886,141.65,141.55,8.8778]
[1742997636094,120.34964886,141.65,141.54,7.0649]
[1742997636095,18.64964886,141.61,141.54,7.0649]
[1742997636300,101.7,141.65,141.54,24.7277]
[1742997636500,27.30964886,141.64,141.54,24.7277]
[1742997637195,8.66,141.64,141.54,24.7277]
[1742997637400,8.64,141.68,141.55,0.14216157]
[1742997637706,8.64,141.68,141.57,20.0]
[1742997637904,8.64,141.68,141.56,24.7244]
[1742997638818,8.64,141.68,141.57,1.8562]
[1742997640017,285.4,141.71,141.59,24.7192]
[1742997640219,8.62,141.72,141.6,0.28432314]
[1742997640404,8.62,141.72,141.61,8.62]
[1742997640720,8.62,141.72,141.62,0.14216157]
[1742997640909,0.063,141.73,141.62,0.14216157]
[1742997641110,0.063,141.73,141.62,77.02325127]
[1742997641313,0.063,141.73,141.62,76.8810897]
[1742997641510,81.7,141.72,141.59,172.2266897]
[1742997641708,81.7,141.72,141.6,0.14216157]
[1742997641916,81.7,141.72,141.61,60.0239]
[1742997642225,20.0,141.72,141.61,136.9049897]
[1742997642403,100.34964886,141.71,141.61,24.7157]
[1742997642724,90.3,141.7,141.61,24.7157]
[1742997642905,8.6,141.7,141.61,101.5967897]
[1742997643106,8.6,141.7,141.61,136.9049897]
[1742997643310,81.763,141.73,141.61,136.9049897]
[1742997643527,81.763,141.73,141.61,145.5049897]
[1742997643725,10.31954484,141.93,141.75,0.14216157]
[1742997643904,10.31954484,141.93,141.82,24.679]
[1742997644100,10.31954484,141.93,141.82,59.9349]
[1742997644305,20.0,141.91,141.82,7.0511]
[1742997644506,8.76,141.9,141.82,24.679]
[1742997645216,8.76,141.9,141.82,59.9349]
[1742997645410,8.76,141.9,141.82,24.679]
[1742997646017,18.71264886,141.92,141.82,24.679]
[1742997646230,0.063,141.92,141.82,24.679]
[1742997646714,0.063,141.92,141.82,59.9349]
[1742997648108,0.063,141.92,141.82,24.679]
[1742997648410,0.063,141.92,141.82,59.9349]
[1742997648610,0.063,141.92,141.83,18.933972]
[1742997648824,0.063,141.92,141.83,0.28432314]
[1742997649034,0.063,141.92,141.83,77.16541284]
[1742997649214,0.063,141.92,141.83,76.8810897]
[1742997650009,0.063,141.92,141.85,24.6739]
[1742997650210,0.0001,141.89,141.86,0.28432314]
[1742997650432,0.063,141.92,141.86,95.8150617]
[1742997650824,0.063,141.92,141.89,20.0]
[1742997651144,0.063,141.99,141.89,20.0]
[1742997651145,0.063,141.99,141.9,1.7663]
[1742997651642,0.063,141.99,141.91,0.28432314]
[1742997651805,0.063,141.99,141.91,76.8810897]
[1742997652003,0.063,141.99,141.92,24.6617]
[1742997652227,0.063,141.99,141.93,0.28432314]
[1742997652409,0.063,141.99,141.92,101.5427897]
[1742997653535,8.703,141.99,141.92,83.9272897]
[1742997653825,8.703,141.99,141.9,8.8131]
[1742997654023,8.703,141.99,141.93,28.40938797]
[1742997654243,8.62,141.98,141.93,33.14428596]
[1742997654620,28.62,141.98,141.93,33.14428596]
[1742997654818,28.62,141.98,141.9,10.74194818]
[1742997655020,8.62,141.97,141.9,10.74194818]
[1742997655524,8.62,141.97,141.86,7.0492]
[1742997655721,20.0,141.96,141.86,7.0492]
[1742997656034,8.62,141.97,141.86,24.6722]
[1742997656207,18.64964886,142.01,141.86,94.5040897]
[1742997656541,8.62,142.0,141.86,94.5040897]
[1742997658244,8.62,142.0,141.86,101.5532897]
[1742997658715,8.62,142.0,141.87,18.79181043]
[1742997658912,8.62,142.0,141.87,95.67290013]
[1742997659416,8.62,142.0,141.89,18.79181043]
[1742997659640,8.62,142.0,141.89,95.67290013]
[1742997660021,8.62,142.0,141.89,76.8810897]
[1742997660228,8.62,142.0,141.9,24.6652]
[1742997660423,8.62,142.0,141.9,101.5462897]
[1742997660649,0.063,142.03,141.9,101.5462897]
[1742997661020,20.0,142.01,141.9,101.5462897]
[1742997661543,0.063,142.03,141.9,101.5462897]
[1742997661750,0.063,142.03,141.91,18.79181043]
[1742997662046,0.063,142.03,141.92,0.14216157]
[1742997662350,0.063,142.03,141.94,24.6582]
[1742997662540,0.063,142.03,141.94,101.5392897]
[1742997662849,0.063,142.03,141.95,18.79181043]
[1742997663029,0.063,142.03,141.96,0.14216157]
[1742997663220,0.063,142.03,141.94,24.6582]
[1742997663424,0.063,142.03,141.94,7.0452]
[1742997663618,20.0,142.02,141.89,7.0477]
[1742997663851,20.0,141.99,141.89,7.0477]
[1742997664052,8.7,141.98,141.89,24.6669]
[1742997664347,25.03494886,142.02,141.89,24.6669]
[1742997664348,8.7,142.0,141.89,24.6669]
[1742997664547,8.7,142.0,141.89,7.0477]
[1742997664729,20.0,141.97,141.88,83.9290897]
[1742997664924,8.7,141.96,141.88,7.048]
[1742997665124,8.7,141.96,141.87,1.8329]
[1742997665336,8.7,141.96,141.87,8.8814]
[1742997665852,8.7,141.96,141.87,103.3841897]
[1742997666152,44.57407885,142.01,141.87,103.3841897]
[1742997666351,6.3853,142.02,141.89,24.6669]
[1742997666538,8.7,142.01,141.89,24.6669]
[1742997667558,8.7,142.01,141.94,0.063]
[1742997668242,20.0,141.98,141.94,0.063]
[1742997668443,18.64964886,141.97,141.94,0.063]
[1742997668638,20.0,141.98,141.94,0.063]
[1742997668839,28.72,141.99,141.94,0.063]
[1742997669148,8.72,141.99,141.94,0.063]
[1742997669356,28.72,141.99,141.94,0.063]
[1742997669755,8.72,141.99,141.94,0.063]
[1742997670130,6.3853,142.02,141.94,0.063]
[1742997671339,20.0,141.99,141.94,0.063]
[1742997671761,8.7,141.98,141.94,0.063]
[1742997672050,20.0,141.95,141.94,0.063]
[1742997673553,20.0,141.97,141.94,0.063]
[1742997673752,28.66,141.97,141.94,0.063]
[1742997675550,20.0,141.93,141.85,7.0497]
[1742997675933,18.64964886,141.92,141.83,7.0506]
[1742997676151,18.64964886,141.92,141.81,78.7299897]
[1742997676152,6.3245,141.9,141.81,1.8489]
[1742997676369,20.0,141.86,141.81,1.8489]
[1742997676545,20.0,141.82,141.81,0.063]
[1742997677041,38.64964886,141.82,141.81,0.063]
[1742997677229,20.0,141.82,141.81,0.063]
[1742997677432,211.92,141.85,141.81,0.063]
[1742997678636,20.0,141.82,141.81,0.063]
[1742997679663,38.64964886,141.82,141.81,0.063]
[1742997679873,20.0,141.82,141.81,0.063]
[1742997680161,211.92,141.85,141.81,0.063]
[1742997680643,8.62,141.84,141.81,0.063]
[1742997681850,20.0,141.82,141.81,0.063]
[1742997682947,38.64964886,141.82,141.81,0.063]
[1742997683151,18.64964886,141.81,141.79,0.063]
[1742997683768,44.57407885,141.83,141.79,0.063]
[1742997683946,221.90964886,141.85,141.79,0.063]
[1742997684145,203.26,141.85,141.79,0.063]
[1742997686175,8.58,141.9,141.8,1.8359]
[1742997686540,8.58,141.9,141.81,7.0516]
[1742997687264,8.58,141.9,141.8,78.7169897]
[1742997687265,8.58,141.9,141.8,85.7690897]
[1742997687464,8.58,141.9,141.8,103.3994897]
[1742997687667,203.42,141.93,141.81,18.79181043]
[1742997687854,203.42,141.93,141.82,0.14216157]
[1742997688045,8.56,141.96,141.81,95.67290013]
[1742997688465,8.56,141.96,141.82,0.14216157]
[1742997688781,8.56,141.96,141.87,2.0582]
[1742997689146,209.7997,142.01,141.87,2.0582]
[1742997689510,18.64964886,141.99,141.87,2.0582]
[1742997689658,20.0,141.96,141.87,2.0582]
[1742997689850,8.54,142.0,141.87,2.0582]
[1742997690765,8.54,142.0,141.88,24.6687]
[1742997691073,8.54,142.0,141.88,101.5497897]
[1742997691262,8.54,142.0,141.89,6.2684]
[1742997691960,20.0,141.98,141.89,6.2684]
[1742997692371,211.96,142.01,141.89,83.1494897]
[1742997692372,203.44,142.01,141.89,83.1494897]
[1742997692556,0.063,142.03,141.9,18.79181043]
[1742997692756,0.063,142.03,141.92,1.9597]
[1742997692958,0.063,142.03,141.92,78.8407897]
[1742997693856,0.063,142.03,141.93,18.79181043]
[1742997694169,0.063,142.03,141.93,95.67290013]
[1742997694766,0.063,142.03,141.94,24.6582]
[1742997695677,0.063,142.03,141.95,18.79181043]
[1742997695982,0.063,142.03,141.94,24.6582]
[1742997696561,0.063,142.03,141.94,7.0452]
[1742997696762,0.063,142.03,141.93,7.0457]
[1742997696950,0.063,142.03,141.93,24.6597]
[1742997697151,20.063,142.03,141.93,7.0457]
[1742997697875,20.063,142.03,141.93,24.66]
[1742997698673,0.063,142.03,141.93,101.5410897]
[1742997701282,0.063,142.03,141.94,18.79181043]
[1742997701489,0.063,142.03,141.94,95.67290013]
[1742997702165,8.48,142.02,141.93,24.66]
[1742997702369,8.48,142.02,141.93,7.0457]
[1742997702585,20.0,141.99,141.92,1.9597]
[1742997702792,20.0,141.99,141.92,9.0057]
[1742997703265,59.60787885,142.02,141.92,26.6212]
[1742997703461,18.64964886,142.01,141.92,9.0057]
[1742997704269,20.0,141.98,141.92,9.0057]
[1742997705572,20.0,141.98,141.87,8.9154]
[1742997705773,8.42,142.01,141.89,0.14216157]
[1742997706093,0.063,142.03,141.9,18.64964886]
[1742997706266,0.063,142.03,141.91,0.28432314]
[1742997706472,0.063,142.03,141.92,1.8667]
[1742997706707,0.063,142.03,141.92,78.7477897]
[1742997707077,20.0,142.01,141.92,1.8667]
[1742997707283,20.0,142.01,141.93,7.0457]
[1742997708593,20.0,142.01,141.93,24.66]
[1742997709190,8.42,142.02,141.93,24.66]
[1742997710397,8.42,142.02,141.93,7.0457]
[1742997711374,8.42,142.02,141.93,24.66]
[1742997712204,28.42,142.02,141.93,24.66]
[1742997712594,8.42,142.01,141.93,24.66]
[1742997712792,8.42,142.01,141.93,7.0457]
[1742997713098,18.64964886,142.0,141.92,8.9127]
[1742997713906,8.42,142.01,141.92,26.5282]
[1742997714287,18.65547688,141.93,141.92,26.5282]
[1742997714669,37.30512574,141.93,141.92,26.5282]
[1742997715794,37.30512574,141.93,141.92,8.9127]
[1742997717474,37.30512574,141.93,141.92,1.8667]
[1742997718588,37.30512574,141.93,141.92,8.9129]
[1742997720792,37.30512574,141.93,141.92,1.8667]
[1742997721394,37.30512574,141.93,141.92,8.9129]
[1742997722077,8.39,142.02,141.92,26.5284]
[1742997722380,8.39,142.02,141.92,138.6405897]
[1742997722381,0.03,142.02,141.92,138.6405897]